Cogmind - Beta 12 @@@ ROGUE MODE // 2023.11.09 @ 16:21:03 Player: kaj Result: Destroyed by as-99618 with Assembled Heavy Rifle Performance ------------- Evolutions (1) 500 Regions Visited (4) 800 Robots Destroyed (12) 60 Value Destroyed (237) 237 Prototype IDs (1) 20 Alien Tech Used (0) 0 Bonus (14) 14 TOTAL SCORE: 1631 Bonus ------- Follower Combat Kills 14 Cogmind --------- Core Integrity 0/400 Matter 129/300 Energy 78/100 System Corruption 0% Temperature Cool (0) Movement Treading (240) Ox1 Location -9/Mines Parts ------- > --- POWER (1) -------- (None) > --- PROPULSION (2) --- Light Treads Improved Aluminum Leg > --- UTILITY (4) ------ Large Storage Unit Sensor Array Tractor Beam > --- WEAPON (2) ------- Autogun Autogun > --- INVENTORY (15) --- Compact Wheel Large Matter Pod (0) Sensor Drone Bay (20/20) Autogun Assault Cannon Assault Cannon Assault Cannon Mini Grenade Launcher Mini Grenade Launcher Peak State ------------ > --- POWER ------------ Light Ion Engine > --- PROPULSION ------- Improved Aluminum Leg Wheel > --- UTILITY ---------- Large Storage Unit Sensor Array Hardened Light Armor Plating Sensor Drone Bay > --- WEAPON ----------- Assault Cannon Assault Cannon > --- INVENTORY -------- Light Ion Engine Light Treads Improved Aluminum Leg Wheel Large Matter Pod Hardened Light Armor Plating Tractor Beam Autogun Autogun Autogun Autogun Assault Cannon Mini Grenade Launcher Mini Grenade Launcher [Rating: 24] Favorites ----------- Power Light Ion Engine Engine Light Ion Engine Propulsion Wheel Treads Light Treads Leg Improved Aluminum Leg Wheel Wheel Utility Sensor Array Device Sensor Array Storage Large Storage Unit Protection Hardened Light Armor Plating Weapon Light Assault Rifle Energy Gun Small Laser Ballistic Gun Light Assault Rifle Ballistic Cannon Assault Cannon Build | -11 -10 -10 -9 -9 ------- Run | Jun Mat Min Mat Min Slots Evolved 2 | . . . 2 . Power . | . . . . . Propulsion . | . . . . . Utility 2 | . . . 2 . Weapon . | . . . . . Parts Attached 31 | 2 8 6 6 9 Power 2 | . 1 . . 1 Engine 2 | . 1 . . 1 Core . | . . . . . Reactor . | . . . . . Propulsion 10 | 2 3 1 1 3 Treads 4 | 1 1 . 1 1 Leg 2 | . . 1 . 1 Wheel 4 | 1 2 . . 1 Hover . | . . . . . Flight . | . . . . . Utility 12 | . 2 5 3 2 Device 9 | . 1 5 1 2 Storage 1 | . 1 . . . Processor . | . . . . . Hackware . | . . . . . Protection 2 | . . . 2 . Artifact . | . . . . . Weapon 7 | . 2 . 2 3 Energy Gun . | . . . . . Energy Cannon . | . . . . . Ballistic Gun 5 | . 2 . . 3 Ballistic Cannon 2 | . . . 2 . Launcher . | . . . . . Special Weapon . | . . . . . Impact Weapon . | . . . . . Slashing Weapon . | . . . . . Piercing Weapon . | . . . . . Special Melee Weapon . | . . . . . Unidentified Prototypes 1 | . . 1 . . Parts Lost 13 | . 3 . . 10 Power 3 | . 1 . . 2 Propulsion 5 | . 2 . . 3 Utility 3 | . . . . 3 Weapon 2 | . . . . 2 Highest Loss Streak 8 | . 1 . . 8 To Critical Strikes . | . . . . . Average Slot Usage (%) 94 | . 95 100 96 78 Engine 11 | . 13 14 11 4 Treads 7 | . 14 . 5 9 Leg 6 | . . 14 5 6 Wheel 11 | . 14 14 11 3 Device 12 | . 10 14 11 15 Storage 13 | . 14 14 11 11 Protection 3 | . . . 19 7 Energy Gun 6 | . 16 . . . Ballistic Gun 15 | . 10 28 1 10 Ballistic Cannon 3 | . . . 18 10 Naked Turns . | . . . . . Heaviest Build 53 | 10 26 39 53 44 Greatest Support 20 | 10 10 10 10 20 Greatest Overweight (x) 5 | . 3 3 5 4 Average Overweight (x) 1 | . . 2 3 2 Largest Inventory Capacity 15 | 8 15 15 15 15 Average Capacity 12 | 8 9 15 15 15 Most Carried 15 | 6 15 15 15 15 Average Carried 11 | 6 8 14 14 11 Final Capacity 15 | 8 15 15 15 15 Final Carried 15 | 6 15 15 15 9 Class Distribution -------------------- 100% | Mutant Dominant Class ---------------- Mutant | -10/Materials Mutant | -10/Mines Mutant | -9/Materials Mutant | -9/Mines Resources | -11 -10 -10 -9 -9 ----------- Run | Jun Mat Min Mat Min Matter Collected 588 | 215 44 15 74 240 Remotely 190 | . . . . 190 Salvage Created 357 | . 168 . 54 135 Parts 21 | . 17 . 1 3 Haulers Intercepted . | . . . . . Recyclers Shooed . | . . . . . Parts Field Recycled . | . . . . . Retrieved Matter . | . . . . . Parts Self-Destructed . | . . . . . Prevented . | . . . . . Kills | -11 -10 -10 -9 -9 ------- Run | Jun Mat Min Mat Min Combat Hostiles Destroyed 18 | . 8 . 1 9 Guns 14 | . 8 . . 6 Cannons 4 | . . . 1 3 Classes Destroyed 6 | . 2 . 1 3 Worker 1 | . . . . 1 Swarmer 7 | . 6 . . 1 Grunt 2 | . 2 . . . Sentry 1 | . . . 1 . Demolisher 1 | . . . . 1 Assembled 7 | . . . . 7 Best Kill Streak 4 | . 3 . 1 4 Combat Bots Only 4 | . 3 . 1 4 Max Kills in Single Turn 1 | . 1 . 1 1 Gunslinging . | . . . . . Exploded . | . . . . . Melee . | . . . . . Uniques/NPCs Destroyed . | . . . . . Combat | -11 -10 -10 -9 -9 -------- Run | Jun Mat Min Mat Min Damage Taken 2164 | . 445 . 12 1707 Core 453 | . 52 . . 401 Absorbed by Shields . | . . . . . Core Remaining (%) 89 | 100 . 79 . . Volleys Fired 59 | . 25 . 2 32 Largest 2 | . 2 . 2 2 Hottest 88 | . 80 . 88 88 Shots Fired 115 | . 50 . 4 61 Gun 81 | . 50 . . 31 Cannon 34 | . . . 4 30 Launcher . | . . . . . Special . | . . . . . Kinetic 80 | . 15 . 4 61 Thermal 35 | . 35 . . . Explosive . | . . . . . Electromagnetic . | . . . . . Robot Hit Streak 11 | . 11 . 1 11 Robot Miss Streak 5 | . 4 . 3 5 Penetration Max . | . . . . . Secondary Targets 3 | . 1 . . 2 Max Gunslinging Chain 1 | . 1 . . 1 Shots Hit Robots 56 | . 29 . 1 26 Core Hits 25 | . 10 . 1 14 Critical Kills . | . . . . . Critical Parts Destroyed . | . . . . . Critical Strikes . | . . . . . Melee Attacks . | . . . . . Impact . | . . . . . Slashing . | . . . . . Piercing . | . . . . . Sneak Attacks . | . . . . . Combat Hostiles . | . . . . . Follow-up Attacks . | . . . . . Damage Inflicted 873 | . 336 . 24 513 Guns 597 | . 336 . . 261 Cannons 276 | . . . 24 252 Explosions . | . . . . . Melee . | . . . . . Ramming . | . . . . . Kinetic 593 | . 56 . 24 513 Thermal 280 | . 280 . . . Explosive . | . . . . . Electromagnetic . | . . . . . Impact . | . . . . . Slashing . | . . . . . Piercing . | . . . . . Highest Corruption . | . . . . . Average Corruption . | . . . . . Corruption Purged . | . . . . . Corruption Blocked . | . . . . . Overload Shots . | . . . . . Overflow Damage 38 | . . . . 38 Projectiles 38 | . . . . 38 Explosions . | . . . . . Melee . | . . . . . Knockbacks 2 | . . . . 2 Impact . | . . . . . Kinetic 2 | . . . . 2 Secondary . | . . . . . Self-Inflicted Damage . | . . . . . Shots . | . . . . . Rammed . | . . . . . Targets Rammed . | . . . . . Kicked . | . . . . . Crushed . | . . . . . Highest Temperature 284 | . 151 . 96 284 Average Temperature 97 | . 61 . 49 141 Received Heat Transfer 120 | . 60 . . 60 Siege Activations . | . . . . . Robots Corrupted . | . . . . . Combat Hostiles . | . . . . . Parts Fried . | . . . . . Impact Corruptions . | . . . . . Robots Melted . | . . . . . Combat Hostiles . | . . . . . Parts Melted 2 | . . . 2 . Heat Transferred 600 | . 600 . . . Parts Sabotaged . | . . . . . Parts Stolen . | . . . . . Parts Stripped . | . . . . . Power Chain Reactions . | . . . . . Missiles Intercepted . | . . . . . Alert | -11 -10 -10 -9 -9 ------- Run | Jun Mat Min Mat Min Peak Influence 304 | . 304 36 91 125 Initial 36 | . . 36 13 35 Average 106 | . 199 36 48 86 Maximum Alert Level 1 | . 1 . . . Low Security (%) 77 | 100 40 100 100 100 Level 1 22 | . 59 . . . Level 2 . | . . . . . Level 3 . | . . . . . Level 4 . | . . . . . Level 5 . | . . . . . High Security . | . . . . . Max Security . | . . . . . Squads Dispatched 1 | . 1 . . . Investigation . | . . . . . Extermination . | . . . . . Reinforcement 1 | . 1 . . . Assault . | . . . . . Garrison . | . . . . . Intercept . | . . . . . Searches Triggered . | . . . . . Construction Impeded . | . . . . . Haulers Reinforced . | . . . . . Active Scanning Responses . | . . . . . Cargo Convoy Interrupts . | . . . . . Stealth | -11 -10 -10 -9 -9 --------- Run | Jun Mat Min Mat Min Distress Signals 1 | . 1 . . . Communications Jammed . | . . . . . Distress Signals . | . . . . . Times Spotted 39 | . 19 . 2 18 Peak Tracking Total 8 | . 4 . 1 8 Tactical Retreats 3 | . 2 . . 1 Traps | -11 -10 -10 -9 -9 ------- Run | Jun Mat Min Mat Min Traps Triggered 2 | . 2 . . . Indirectly . | . . . . . Trap Hack Attempts . | . . . . . Triggered . | . . . . . Disarmed . | . . . . . Reprogrammed . | . . . . . Reused . | . . . . . Traps Extracted . | . . . . . Installed . | . . . . . Triggered . | . . . . . Machines | -11 -10 -10 -9 -9 ---------- Run | Jun Mat Min Mat Min Machines Disabled . | . . . . . Max in Single Turn . | . . . . . Machines Repaired . | . . . . . Machines Sabotaged . | . . . . . Overloaded Fab Kills . | . . . . . Hacking | -11 -10 -10 -9 -9 --------- Run | Jun Mat Min Mat Min Machines Accessed 5 | . 2 2 1 . Terminals 4 | . 2 1 1 . Fabricators . | . . . . . Repair Stations . | . . . . . Recycling Units . | . . . . . Scanalyzers . | . . . . . Garrison Access . | . . . . . Total Hacks 11 | . 6 2 3 . Successful 7 | . 3 2 2 . Failed 4 | . 3 . 1 . Catastrophic 1 | . 1 . . . Database Lockouts . | . . . . . Manual 6 | . 3 . 3 . Terminals 10 | . 6 1 3 . Fabricators . | . . . . . Repair Stations . | . . . . . Recycling Units . | . . . . . Scanalyzers . | . . . . . Garrison Access . | . . . . . Terminal Hacks 7 | . 3 2 2 . Robot Analysis 3 | . 1 . 2 . Open Door 1 | . . 1 . . Branch Access Points 1 | . 1 . . . Zone Layout 2 | . 1 1 . . Fabricator Hacks . | . . . . . Repair Station Hacks . | . . . . . Recycling Unit Hacks . | . . . . . Scanalyzer . | . . . . . Garrison Access Hacks . | . . . . . Unauthorized Hacks . | . . . . . Terminals . | . . . . . Fabricators . | . . . . . Repair Stations . | . . . . . Recycling Units . | . . . . . Scanalyzers . | . . . . . Garrison Access . | . . . . . Data Cores Recovered . | . . . . . Used . | . . . . . Hacking Detections 2 | . 2 . . . Full Trace Events . | . . . . . Feedback Events . | . . . . . Feedback Blocked . | . . . . . Robot Schematics Acquired . | . . . . . Robots Built . | . . . . . Authchips . | . . . . . Time . | . . . . . Total Robot Build Rating . | . . . . . Part Schematics Acquired . | . . . . . Parts Built . | . . . . . Authchips . | . . . . . Time . | . . . . . Total Part Build Rating . | . . . . . Parts Repaired . | . . . . . Time . | . . . . . Parts Recycled . | . . . . . Recycled Matter . | . . . . . Retrieved Matter . | . . . . . Retrieved Components . | . . . . . Parts Scanalyzed . | . . . . . Part Schematics Acquired . | . . . . . Parts Damaged . | . . . . . Bothacking | -11 -10 -10 -9 -9 ------------ Run | Jun Mat Min Mat Min Used RIF Installer . | . . . . . Robots Hacked . | . . . . . Non-combat . | . . . . . Combat . | . . . . . Robot Hacks Applied . | . . . . . Relay Couplers Released . | . . . . . Fabnet Peak Effective % . | . . . . . Robots Rewired . | . . . . . Allies Hacked . | . . . . . Hacks Repelled . | . . . . . Allies | -11 -10 -10 -9 -9 -------- Run | Jun Mat Min Mat Min Total Allies 1 | . . 1 . . Largest Group 1 | . . 1 1 1 Highest-Rated Group 31 | . . 31 31 31 Highest-Rated Ally 31 | . . 31 31 31 Total Orders 24 | . . 24 . . EXPLORE 3 | . . 3 . . RETURN 21 | . . 21 . . Ally Attacks 9 | . . . 5 4 Total Damage 163 | . . . 81 82 Kills 3 | . . . 1 2 Allies Corrupted . | . . . . . Allies Melted . | . . . . . Intel | -11 -10 -10 -9 -9 ------- Run | Jun Mat Min Mat Min Robot Analysis Total 3 | . 1 . 2 . Derelict Logs Recovered 1 | . . 1 . . Drone Launches 20 | . . 20 . . Drone Recoveries 20 | . . 20 . . Exploration | -11 -10 -10 -9 -9 ------------- Run | Jun Mat Min Mat Min Turns Passed 1144 | 7 425 382 134 196 Spaces Moved 737 | 5 294 301 86 51 Core 1 | . 1 . . . Treads 22 | . . . . 22 Legs . | . . . . . Wheels 714 | 5 293 301 86 29 Hover . | . . . . . Flight . | . . . . . Fastest Speed 80 | 80 80 110 110 125 Average Speed 112 | 80 94 111 137 182 Slowest Speed 240 | 80 200 125 155 240 Overloaded Moves . | . . . . . Propulsion Burnouts . | . . . . . Robots Hopped . | . . . . . Cave-ins Triggered . | . . . . . Exploration Rate (%) 33 | 3 52 86 10 15 Regions Visited 4 Branch Regions 2 Pre-discovered Areas . | . . . . . Known Exits Taken 1 | . 1 . . . Unknown Exits Taken 3 | 1 . 1 1 . Scrap Searched 1 | . . 1 . . Spaces Dug . | . . . . . Terrain Destroyed 21 | . . . 3 18 Melee . | . . . . . Projectile 21 | . . . 3 18 AOE . | . . . . . Terrain Rammed . | . . . . . Walls Destroyed . | . . . . . Machines Disabled . | . . . . . Actions | -11 -10 -10 -9 -9 --------- Run | Jun Mat Min Mat Min Total 945 | 6 396 346 98 99 Wait 89 | . 48 37 . 4 Move 733 | 4 293 300 85 51 Hop . | . . . . . Pick Up 23 | . 17 2 2 2 Fast Attach 5 | . 2 . 3 . Attach 17 | . 5 1 2 9 Detach 1 | . . . . 1 Swap 9 | 2 1 5 1 . Drop 9 | . 5 1 3 . Fire 59 | . 25 . 2 32 Melee . | . . . . . Ram . | . . . . . Kick . | . . . . . Crush . | . . . . . Escape Stasis . | . . . . . Rewire . | . . . . . Trap . | . . . . . Miscellaneous . | . . . . . Route ------- -11/Junkyard -10/Materials (discovered 2 exits: *Mat / *Min) -10/Mines (discovered 2 exits: *Mat x2) -9/Materials -9/Mines (discovered 1 exit: [*Mat]) History --------- Turn | Location | Event 4 | -11/Junkyard | Discovered new exit (range 2) 8 | -11/Junkyard | Entered Materials 117 | -10/Materials | Identified exit to Mines 252 | -10/Materials | Discovered new exit (range 10) 305 | -10/Materials | Build established: Mutant 433 | -10/Materials | Entered Mines 501 | -10/Mines | Found the Drone Emporium 505 | -10/Mines | Found Prototype Device 597 | -10/Mines | Identified Sensor Drone Bay 625 | -10/Mines | Discovered new exit (range 15) 698 | -10/Mines | Learned Materials non-interactive machine intel 713 | -10/Mines | Received a Rocket Launcher from a helpful Derelict 805 | -10/Mines | Discovered new exit (range 8) 809 | -10/Mines | Received a Mining Laser from a helpful Derelict 815 | -10/Mines | Entered Materials 815 | -9/Materials | Accompanied by 1 ally 815 | -9/Materials | Evolved 2 slots: Utility x2 816 | -9/Materials | Loaded intel: 53 non-interactive machine locations 903 | -9/Materials | Discovered new exit (range 9) 949 | -9/Materials | Entered Mines 949 | -9/Mines | Accompanied by 1 ally 961 | -9/Mines | Discovered new exit (range 8) 972 | -9/Mines | Assembled infested the area 1021 | -9/Mines | Core integrity fell below 50% 1065 | -9/Mines | Lost 8 parts (2p3n2u1w) 1132 | -9/Mines | Core integrity fell below 20% 1145 | -9/Mines | Destroyed by as-99618 with Assembled Heavy Rifle Last Messages --------------- 01080_ as-71512 destroyed. 01084_ Acquired 74 matter. 01093_ Acquired Com. Wheel. 01096_ Acquired Tractor Beam. 01100_ Acquired 18 matter. 01104_ as-36637 destroyed. 01110_ as-20748 sneak attacks. 01110_ T-07 Excavator system corrupted by crushing effect. 01125_ Tractor Beam destroyed. 01125_ as-20748 destroyed. 01125_ Switching to secondary target: as-24784. 01128_ as-24784 destroyed. 01130_ Destroyed Asb. Hover Unit. 01133_ as-72149 destroyed. 01133_ Switching to secondary target: as-14484. 01136_ Autogun destroyed. 01138_ as-14484 destroyed. 01142_ Acquired 14 matter. 01142_ Acquired 16 matter. 01142_ Acquired 13 matter. Map ----- +----------------------------------------------------+ | ????????????????????????????????????????????????? | | ????????????????????????????????????????????????? | | ????????????????????????????????????????????????? | | ????????????????????????????????????????????????? | | ????????????????????????????????????????????????? | | ????????????????????????????????????????????????? | | ????????????????????????????????????????????????? | | ????????????????????????????????????????????????? | | ????????????????????????????????????????????????? | | ????????????????????????????????????????????????? | | ????????????????????????????????????????????????? | | ????????????????????????????????????????????????? | | ?????????????????#??????????????????????????????? | | ????????????###### ?????????????????????????????? | | ???????????## ?????????????????????????????? | | ???????????# ?????????????????????????????? | | ???????????# ????????????????????????????? | | ????????????# ????????????????????????????? | | ?????????????# #???????####### #???????????? | | ??????????????# ####### !* % #???????????? | | ??????###???????# r "*== ?????????????? | | ???### ????????# #????????????????? | | ??## ??????????# a #?????????????????? | | ??? ???????????#| #?????????????????????? | | ??# ????????????# ##?????????????????????? | | ??# ???????????## @#??????????????????????? | | ??? < ??????????## #??????????????????????? | | ???? #??????????# ##??????????????????????? | | ????? ###???###### ###???????????????????????? | | ?????# ???? " ## ###????????????????????????? | | ?##### ##????## ## # # #????????????????????????? | | ?# ####### # # # ####?????????????????????? | | ?# % %#### # #?????????????????????? | | ?# #####"# # ? ####??????????????????? | | ?#* #?### # #### ##?????????????????? | | ?# [ #?# # ## #?????????????????? | | ?# = #?# ? ##?????????????????? | | ?########?#### # # #?????????????????? | | ?????????????## ## ##????????????????? | | ??????????????## ## #????????????????? | | ???????????????#### ## ###????????????????? | | ????????????????### # #?????????????????? | | ??????????????????### # ##?????????????????? | | | | | | | | | | | | | | | +----------------------------------------------------+ Best States ------------- Heat Dissipation 28 Energy Generation 10 Energy Capacity 125 Matter Stores 300 Matter Capacity 300 Sight Range 16 Robot Scan Range 14 Terrain Scan Density 10 Armor Coverage 300 Evasion (%) 44 Recoil Reduction 1 Item Schematics ----------------- None Robot Schematics ------------------ None Fabricated ------------ Nothing Alien Tech Used ----------------- None Achievements -------------- None Challenges ------------ None Game ------ Seed TachyonContainmentBeam Manual? 0 Play Time 00:18:11 Cumulative 145.1 hours Start 2023.11.09 @ 16:04:57 End 2023.11.09 @ 16:21:03 Sessions 1 Manual Loads 0 Difficulty Rogue Special Mode None Game No. 218 Rogue 218 Adventurer 0 Explorer 0 Win Type - Total 0 Types 0/0/0/0/0/0/0/0/0 Lore% 49 Gallery% 58 Achievement% 43 Wizard Run 0 Options --------- ASCII 0 Keyboard 0 Movement Mouse Keybinds 1 Fullscreen 0 Font 12/Smallcaps Map View 76x50 Tactical HUD 1 Map Filters SATURATION(75) Filters LOW_CONTRAST(23,23,23) Steam 1 RUN: 8e622be8-7642-433c-a071-b52739dfd12d